[Event "*** Titled Tuesday Blitz"]
[Site "Chess.com"]
[Date "2020.04.21"]
[Round "2"]
[White "Enriquack"]
[Black "Jeffinho023"]
[Result "0-1"]
[WhiteElo "2247"]
[BlackElo "2469"]
[TimeControl "180+1"]
[EndTime "10:18:51 PDT"]
[Termination "Jeffinho023 won by resignation"]

1. e4 {[%clk 0:03:00.9]} 1... e5 {[%clk 0:02:59.3]} 2. Nf3 {[%clk 0:03:00.8]}
2... Nf6 {[%clk 0:02:59.2]} 3. Nxe5 {[%clk 0:02:59.6]} 3... d6 {[%clk
0:02:58.7]} 4. Nf3 {[%clk 0:02:59.4]} 4... Nxe4 {[%clk 0:02:58.5]} 5. Nc3 {[%clk
0:03:00]} 5... Nf6 {[%clk 0:02:57.3]} 6. d4 {[%clk 0:02:58.9]} 6... d5 {[%clk
0:02:57.3]} 7. Bd3 {[%clk 0:02:57.3]} 7... Bg4 {[%clk 0:02:56.9]} 8. h3 {[%clk
0:02:34.9]} 8... Bh5 {[%clk 0:02:55.9]} 9. g4 {[%clk 0:02:35.1]} 9... Bg6 {[%clk
0:02:55.4]} 10. Ne5 {[%clk 0:02:35.2]} 10... Nbd7 {[%clk 0:02:54.9]} 11. Nxg6
{[%clk 0:02:31]} 11... hxg6 {[%clk 0:02:53.4]} 12. Qf3 {[%clk 0:02:29.4]} 12...
c6 {[%clk 0:02:52.6]} 13. Bf4 {[%clk 0:02:27.8]} 13... Qb6 {[%clk 0:02:45.9]}
14. O-O-O {[%clk 0:02:21.8]} 14... O-O-O {[%clk 0:02:39.6]} 15. Bh2 {[%clk
0:02:07]} 15... g5 {[%clk 0:02:28.2]} 16. Qg3 {[%clk 0:01:57.1]} 16... Ne8
{[%clk 0:01:39.2]} 17. Bf5 {[%clk 0:01:39.8]} 17... Bd6 {[%clk 0:01:38.4]} 18.
Qg2 {[%clk 0:01:38.1]} 18... Bxh2 {[%clk 0:01:37.3]} 19. Qxh2 {[%clk 0:01:39]}
19... Nf6 {[%clk 0:01:33.7]} 20. f4 {[%clk 0:01:35.3]} 20... gxf4 {[%clk
0:01:32.3]} 21. Qxf4 {[%clk 0:01:35.3]} 21... Qc7 {[%clk 0:01:31.5]} 22. Qg5
{[%clk 0:01:17.8]} 22... g6 {[%clk 0:01:25.4]} 23. Bd3 {[%clk 0:01:15.9]} 23...
Qd6 {[%clk 0:01:22.3]} 24. Rde1 {[%clk 0:01:12.1]} 24... Rde8 {[%clk 0:01:22.2]}
25. h4 {[%clk 0:00:45.1]} 25... Rxe1+ {[%clk 0:01:19.2]} 26. Rxe1 {[%clk
0:00:45]} 26... Qg3 {[%clk 0:01:16.3]} 27. Rf1 {[%clk 0:00:32.1]} 27... Qxh4
{[%clk 0:01:14.7]} 28. Qxh4 {[%clk 0:00:25.4]} 28... Rxh4 {[%clk 0:01:14.1]} 29.
g5 {[%clk 0:00:26]} 29... Nh7 {[%clk 0:01:04.1]} 30. Rxf7 {[%clk 0:00:26]} 30...
Nxg5 {[%clk 0:01:03.9]} 31. Rg7 {[%clk 0:00:26.1]} 31... Ne6 {[%clk 0:00:51.6]}
32. Rxg6 {[%clk 0:00:20.5]} 32... Nxd4 {[%clk 0:00:51.6]} 33. Rg7 {[%clk
0:00:20.1]} 33... Ne6 {[%clk 0:00:39.2]} 34. Rf7 {[%clk 0:00:17.4]} 34... Nd8
{[%clk 0:00:26.3]} 35. Rg7 {[%clk 0:00:15.9]} 35... Rf4 {[%clk 0:00:25.6]} 36.
Ne2 {[%clk 0:00:14.6]} 36... Rf6 {[%clk 0:00:25]} 37. Nd4 {[%clk 0:00:14]} 37...
Ne5 {[%clk 0:00:23.5]} 38. Bf5+ {[%clk 0:00:12.9]} 38... Kb8 {[%clk 0:00:23.8]}
39. Rg8 {[%clk 0:00:12.8]} 39... Kc7 {[%clk 0:00:23.9]} 40. b4 {[%clk
0:00:11.3]} 40... b6 {[%clk 0:00:23.6]} 41. a4 {[%clk 0:00:11.1]} 41... c5
{[%clk 0:00:23.8]} 42. bxc5 {[%clk 0:00:11.1]} 42... bxc5 {[%clk 0:00:24.2]} 43.
Nb5+ {[%clk 0:00:11.7]} 43... Kb6 {[%clk 0:00:24.4]} 44. Rxd8 {[%clk 0:00:11.7]}
44... Rxf5 {[%clk 0:00:24.5]} 45. Rd6+ {[%clk 0:00:11.9]} 45... Ka5 {[%clk
0:00:23.9]} 46. Nc3 {[%clk 0:00:12]} 46... d4 {[%clk 0:00:23]} 47. Ne4 {[%clk
0:00:11.7]} 47... Nc4 {[%clk 0:00:22.7]} 48. Kb1 {[%clk 0:00:09.8]} 48... Kxa4
{[%clk 0:00:20.6]} 49. Ra6+ {[%clk 0:00:07.6]} 49... Kb5 {[%clk 0:00:20.6]} 50.
Rxa7 {[%clk 0:00:07.9]} 50... Rf1+ {[%clk 0:00:19.6]} 51. Ka2 {[%clk 0:00:08.1]}
51... Re1 {[%clk 0:00:20]} 52. Re7 {[%clk 0:00:04]} 52... Kb4 {[%clk 0:00:15.7]}
53. Rb7+ {[%clk 0:00:03.5]} 53... Ka5 {[%clk 0:00:14.9]} 54. Nxc5 {[%clk
0:00:02.5]} 54... Ne3 {[%clk 0:00:13.4]} 55. Nb3+ {[%clk 0:00:01.8]} 55... Ka6
{[%clk 0:00:13.1]} 56. Rc7 {[%clk 0:00:02.2]} 56... Rd1 {[%clk 0:00:11.8]} 57.
Rc4 {[%clk 0:00:02.7]} 57... Nf5 {[%clk 0:00:10.9]} 58. Ra4+ {[%clk 0:00:02.1]}
58... Kb6 {[%clk 0:00:10.9]} 59. Rb4+ {[%clk 0:00:02.2]} 59... Kc6 {[%clk
0:00:11.2]} 60. Rc4+ {[%clk 0:00:02.7]} 60... Kd5 {[%clk 0:00:11.5]} 61. Kb2
{[%clk 0:00:03.2]} 61... Ke4 {[%clk 0:00:10.4]} 0-1

[Event "*** Titled Tuesday Blitz"]
[Site "Chess.com"]
[Date "2020.04.21"]
[Round "2"]
[White "Jospem"]
[Black "RATNAKARAN"]
[Result "1-0"]
[WhiteElo "2827"]
[BlackElo "2567"]
[TimeControl "180+1"]
[EndTime "10:18:53 PDT"]
[Termination "Jospem won by resignation"]

1. c4 {[%clk 0:03:00.9]} 1... e5 {[%clk 0:02:59.5]} 2. Nc3 {[%clk 0:03:00.1]}
2... Nc6 {[%clk 0:02:59.8]} 3. Nf3 {[%clk 0:03:00.6]} 3... f5 {[%clk 0:02:59.3]}
4. d4 {[%clk 0:03:00.7]} 4... e4 {[%clk 0:02:59.4]} 5. Ng5 {[%clk 0:03:01.1]}
5... Be7 {[%clk 0:02:57.3]} 6. Nh3 {[%clk 0:03:01.1]} 6... Nf6 {[%clk
0:02:54.2]} 7. e3 {[%clk 0:03:01.2]} 7... O-O {[%clk 0:02:53.9]} 8. Be2 {[%clk
0:03:01.1]} 8... d6 {[%clk 0:02:53.1]} 9. Nf4 {[%clk 0:03:01.6]} 9... g5 {[%clk
0:02:52.3]} 10. Nfd5 {[%clk 0:03:01.2]} 10... Nxd5 {[%clk 0:02:50.7]} 11. Nxd5
{[%clk 0:03:01.8]} 11... Bf6 {[%clk 0:02:50.7]} 12. b3 {[%clk 0:03:01.4]} 12...
Bg7 {[%clk 0:02:50.5]} 13. Bb2 {[%clk 0:03:01.4]} 13... Be6 {[%clk 0:02:50.2]}
14. Nc3 {[%clk 0:03:01.6]} 14... Bf7 {[%clk 0:02:49.7]} 15. Qd2 {[%clk
0:03:01.2]} 15... Bg6 {[%clk 0:02:48.6]} 16. O-O-O {[%clk 0:03:01.2]} 16... a5
{[%clk 0:02:48.3]} 17. a3 {[%clk 0:02:57.4]} 17... a4 {[%clk 0:02:44.5]} 18. b4
{[%clk 0:02:56.9]} 18... f4 {[%clk 0:02:39.5]} 19. Bg4 {[%clk 0:02:46.9]} 19...
Bf7 {[%clk 0:02:25.4]} 20. Be2 {[%clk 0:02:37.6]} 20... Bg6 {[%clk 0:02:25]} 21.
Rdf1 {[%clk 0:02:34.4]} 21... Kh8 {[%clk 0:02:14.4]} 22. Bg4 {[%clk 0:02:19.7]}
22... Qe8 {[%clk 0:02:11.3]} 23. h4 {[%clk 0:02:14]} 23... fxe3 {[%clk
0:02:11.1]} 24. fxe3 {[%clk 0:02:13.2]} 24... Rxf1+ {[%clk 0:02:10.9]} 25. Rxf1
{[%clk 0:02:13.6]} 25... gxh4 {[%clk 0:02:11.6]} 26. Nd5 {[%clk 0:02:14]} 26...
Qg8 {[%clk 0:02:10.4]} 27. Qe2 {[%clk 0:02:04.6]} 27... Rf8 {[%clk 0:02:01.4]}
28. Nxc7 {[%clk 0:01:59.7]} 28... Rxf1+ {[%clk 0:01:59.7]} 29. Qxf1 {[%clk
0:02:00.6]} 29... Qd8 {[%clk 0:01:54.3]} 30. Nd5 {[%clk 0:01:40.4]} 30... Qg5
{[%clk 0:01:52.8]} 31. Bd1 {[%clk 0:01:38.9]} 31... h5 {[%clk 0:01:48.9]} 32.
Nf4 {[%clk 0:01:36.2]} 32... Kh7 {[%clk 0:01:44.1]} 33. Qf2 {[%clk 0:01:10.1]}
33... Ne7 {[%clk 0:01:41.5]} 34. Bc3 {[%clk 0:01:04.2]} 34... Nf5 {[%clk
0:01:38.8]} 35. Bd2 {[%clk 0:01:04.1]} 35... Ng3 {[%clk 0:01:38.5]} 36. Bxa4
{[%clk 0:00:57.9]} 36... Bf5 {[%clk 0:01:32.9]} 37. Bc2 {[%clk 0:00:57.2]} 37...
Bg4 {[%clk 0:01:32.2]} 38. Kb2 {[%clk 0:00:53.7]} 38... b5 {[%clk 0:01:27.2]}
39. Bb3 {[%clk 0:00:40.5]} 39... bxc4 {[%clk 0:01:26.5]} 40. Bxc4 {[%clk
0:00:41.4]} 40... Qf5 {[%clk 0:01:11.1]} 41. b5 {[%clk 0:00:36.6]} 41... Qc5
{[%clk 0:01:07.9]} 42. Bf1 {[%clk 0:00:22.2]} 42... d5 {[%clk 0:01:00.7]} 43.
Bc3 {[%clk 0:00:20.6]} 43... Qf8 {[%clk 0:00:59.1]} 44. a4 {[%clk 0:00:18.3]}
44... Bh6 {[%clk 0:00:54.8]} 45. b6 {[%clk 0:00:17.7]} 45... Qd6 {[%clk
0:00:53.2]} 46. Bb5 {[%clk 0:00:17.5]} 46... Qxb6 {[%clk 0:00:52.6]} 47. Nxd5
{[%clk 0:00:17.7]} 47... Qb7 {[%clk 0:00:52.9]} 48. Nf6+ {[%clk 0:00:17.6]}
48... Kg6 {[%clk 0:00:52.4]} 49. Nxg4 {[%clk 0:00:17.9]} 49... hxg4 {[%clk
0:00:52.9]} 50. d5 {[%clk 0:00:18]} 50... Nf5 {[%clk 0:00:52.6]} 51. d6 {[%clk
0:00:16.2]} 51... Bxe3 {[%clk 0:00:51]} 52. Qe2 {[%clk 0:00:16.6]} 52... Qd5
{[%clk 0:00:50.3]} 53. Qxg4+ {[%clk 0:00:16.5]} 53... Kf7 {[%clk 0:00:50.4]} 54.
d7 {[%clk 0:00:15.5]} 54... Bb6 {[%clk 0:00:44]} 55. Qh5+ {[%clk 0:00:15.2]}
55... Ke7 {[%clk 0:00:42.3]} 56. Qe8+ {[%clk 0:00:15.4]} 56... Kd6 {[%clk
0:00:41.2]} 57. d8=Q+ {[%clk 0:00:15.7]} 57... Bxd8 {[%clk 0:00:41.5]} 58. Qxd8+
{[%clk 0:00:16.6]} 58... Ke6 {[%clk 0:00:41.8]} 59. Qg8+ {[%clk 0:00:14.8]}
59... Kd6 {[%clk 0:00:41.7]} 60. Bb4+ {[%clk 0:00:15]} 60... Ke5 {[%clk
0:00:41.9]} 61. Qe8+ {[%clk 0:00:14.8]} 61... Kf4 {[%clk 0:00:41.6]} 62. Qc6
{[%clk 0:00:12.3]} 62... Qd4+ {[%clk 0:00:40.8]} 63. Bc3 {[%clk 0:00:12.3]}
63... Qf2+ {[%clk 0:00:40.6]} 64. Ka3 {[%clk 0:00:12.2]} 64... Qxg2 {[%clk
0:00:40]} 65. Qc7+ {[%clk 0:00:12.5]} 65... Kf3 {[%clk 0:00:39.4]} 66. Qe5
{[%clk 0:00:13.1]} 66... Qg5 {[%clk 0:00:38]} 67. Bc6 {[%clk 0:00:11.9]} 67...
Qf4 {[%clk 0:00:37.4]} 68. Qxf4+ {[%clk 0:00:10.6]} 68... Kxf4 {[%clk
0:00:37.8]} 69. a5 {[%clk 0:00:11.5]} 69... Ne7 {[%clk 0:00:37.5]} 70. Bb7
{[%clk 0:00:11]} 70... h3 {[%clk 0:00:37.2]} 71. Bb4 {[%clk 0:00:11.5]} 71...
Nf5 {[%clk 0:00:36.7]} 72. a6 {[%clk 0:00:10.6]} 72... h2 {[%clk 0:00:36.9]} 73.
Bxe4 {[%clk 0:00:11.1]} 73... Kxe4 {[%clk 0:00:37.2]} 74. a7 {[%clk 0:00:11.6]}
74... Ng3 {[%clk 0:00:35.4]} 75. a8=Q+ {[%clk 0:00:12.5]} 75... Kf4 {[%clk
0:00:35.6]} 76. Bd6+ {[%clk 0:00:12.6]} 76... Kg4 {[%clk 0:00:35.8]} 77. Bxg3
{[%clk 0:00:13.1]} 77... Kxg3 {[%clk 0:00:36.3]} 78. Qh1 {[%clk 0:00:13.5]} 1-0

[Event "*** Titled Tuesday Blitz"]
[Site "Chess.com"]
[Date "2020.04.21"]
[Round "2"]
[White "secretsuperstar7"]
[Black "El_ultimo_Pablo"]
[Result "1-0"]
[WhiteElo "2188"]
[BlackElo "2417"]
[TimeControl "180+1"]
[EndTime "10:18:54 PDT"]
[Termination "secretsuperstar7 won by checkmate"]

1. d4 {[%clk 0:03:00.9]} 1... Nf6 {[%clk 0:02:59.4]} 2. c4 {[%clk 0:02:56.6]}
2... e6 {[%clk 0:02:59.6]} 3. Nc3 {[%clk 0:02:54.8]} 3... Bb4 {[%clk 0:03:00]}
4. e3 {[%clk 0:02:53.2]} 4... O-O {[%clk 0:02:59.8]} 5. Bd3 {[%clk 0:02:52.3]}
5... c5 {[%clk 0:02:59.9]} 6. d5 {[%clk 0:02:47.6]} 6... exd5 {[%clk 0:02:58.3]}
7. cxd5 {[%clk 0:02:47]} 7... Re8 {[%clk 0:02:32.9]} 8. Ne2 {[%clk 0:02:18.4]}
8... h6 {[%clk 0:02:31.8]} 9. Bc2 {[%clk 0:02:17.4]} 9... d6 {[%clk 0:02:30]}
10. O-O {[%clk 0:02:16.4]} 10... Nbd7 {[%clk 0:02:25.1]} 11. e4 {[%clk
0:02:15.2]} 11... a6 {[%clk 0:02:11.3]} 12. h4 {[%clk 0:01:53]} 12... b5 {[%clk
0:02:06.2]} 13. a4 {[%clk 0:01:39.1]} 13... Rb8 {[%clk 0:02:04.5]} 14. axb5
{[%clk 0:01:38]} 14... axb5 {[%clk 0:02:05.4]} 15. Ng3 {[%clk 0:01:22.3]} 15...
Ne5 {[%clk 0:01:59.7]} 16. f4 {[%clk 0:01:15.8]} 16... Bg4 {[%clk 0:01:53.4]}
17. Qe1 {[%clk 0:01:04.5]} 17... Nc4 {[%clk 0:01:48.1]} 18. Qf2 {[%clk
0:01:00.3]} 18... Nd7 {[%clk 0:01:37.4]} 19. Bd1 {[%clk 0:00:55]} 19... Qxh4
{[%clk 0:01:34.9]} 20. Bxg4 {[%clk 0:00:50]} 20... Qxg4 {[%clk 0:01:35.8]} 21.
Qf3 {[%clk 0:00:38.9]} 21... Qxf3 {[%clk 0:01:34.9]} 22. gxf3 {[%clk 0:00:39.8]}
22... Bxc3 {[%clk 0:01:28.2]} 23. bxc3 {[%clk 0:00:38.8]} 23... Ra8 {[%clk
0:01:26.9]} 24. Rb1 {[%clk 0:00:37.2]} 24... Reb8 {[%clk 0:01:25.5]} 25. Nf5
{[%clk 0:00:35.7]} 25... Ra2 {[%clk 0:01:18.2]} 26. Ne7+ {[%clk 0:00:33.3]}
26... Kf8 {[%clk 0:01:09.2]} 27. Nc6 {[%clk 0:00:32.1]} 27... Rb7 {[%clk
0:01:05.1]} 28. Rf2 {[%clk 0:00:32.2]} 28... Rxf2 {[%clk 0:01:03.4]} 29. Kxf2
{[%clk 0:00:33.1]} 29... g6 {[%clk 0:00:53]} 30. f5 {[%clk 0:00:31.1]} 30... Kg7
{[%clk 0:00:51.4]} 31. fxg6 {[%clk 0:00:25.5]} 31... fxg6 {[%clk 0:00:52.3]} 32.
Bf4 {[%clk 0:00:23.1]} 32... Nde5 {[%clk 0:00:50.6]} 33. Bxe5+ {[%clk
0:00:21.4]} 33... Nxe5 {[%clk 0:00:50.4]} 34. Nd8 {[%clk 0:00:20.5]} 34... Rb8
{[%clk 0:00:42.9]} 35. Nc6 {[%clk 0:00:18.8]} 35... Kf6 {[%clk 0:00:27.6]} 36.
Nxb8 {[%clk 0:00:17.5]} 36... b4 {[%clk 0:00:23.2]} 37. cxb4 {[%clk 0:00:16.6]}
37... cxb4 {[%clk 0:00:24.1]} 38. Ke3 {[%clk 0:00:15.9]} 38... h5 {[%clk
0:00:19.8]} 39. Nc6 {[%clk 0:00:15.1]} 39... Nc4+ {[%clk 0:00:17.9]} 40. Kd4
{[%clk 0:00:14.2]} 40... Nd2 {[%clk 0:00:17.4]} 41. Rd1 {[%clk 0:00:12.3]} 41...
Nxf3+ {[%clk 0:00:16.8]} 42. Ke3 {[%clk 0:00:12.3]} 42... Ng5 {[%clk 0:00:16.4]}
43. Rf1+ {[%clk 0:00:11.4]} 43... Kg7 {[%clk 0:00:16.1]} 44. Kf4 {[%clk
0:00:10.4]} 44... Nf7 {[%clk 0:00:15.3]} 45. Nxb4 {[%clk 0:00:09.4]} 45... Ne5
{[%clk 0:00:15.6]} 46. Rg1 {[%clk 0:00:07.9]} 46... Kh6 {[%clk 0:00:14.7]} 47.
Nc6 {[%clk 0:00:07.6]} 47... Nd3+ {[%clk 0:00:12.8]} 48. Ke3 {[%clk 0:00:07.5]}
48... Nb2 {[%clk 0:00:11.6]} 49. e5 {[%clk 0:00:07.5]} 49... Nc4+ {[%clk
0:00:10.4]} 50. Kd4 {[%clk 0:00:07.6]} 50... Nd2 {[%clk 0:00:10.3]} 51. Ke3
{[%clk 0:00:05.4]} 51... Nc4+ {[%clk 0:00:10.3]} 52. Ke4 {[%clk 0:00:05.3]}
52... dxe5 {[%clk 0:00:10]} 53. Nxe5 {[%clk 0:00:04.3]} 53... Nd6+ {[%clk
0:00:10.4]} 54. Kd4 {[%clk 0:00:04.2]} 54... g5 {[%clk 0:00:10.7]} 55. Kc5
{[%clk 0:00:02.6]} 55... Ne4+ {[%clk 0:00:11]} 56. Kc6 {[%clk 0:00:02.9]} 56...
g4 {[%clk 0:00:11.4]} 57. d6 {[%clk 0:00:03]} 57... Nxd6 {[%clk 0:00:11.1]} 58.
Kxd6 {[%clk 0:00:02.8]} 58... Kg5 {[%clk 0:00:12]} 59. Nxg4 {[%clk 0:00:02.9]}
59... hxg4 {[%clk 0:00:12]} 60. Ke5 {[%clk 0:00:03.5]} 60... Kh4 {[%clk
0:00:12.1]} 61. Kf4 {[%clk 0:00:03.1]} 61... g3 {[%clk 0:00:12.5]} 62. Rxg3
{[%clk 0:00:03.3]} 62... Kh5 {[%clk 0:00:12.9]} 63. Rg2 {[%clk 0:00:03.4]} 63...
Kh6 {[%clk 0:00:13]} 64. Kf5 {[%clk 0:00:03.4]} 64... Kh7 {[%clk 0:00:13.5]} 65.
Kf6 {[%clk 0:00:03.7]} 65... Kh6 {[%clk 0:00:14.1]} 66. Rh2# {[%clk 0:00:02.7]}
1-0

[Event "*** Titled Tuesday Blitz"]
[Site "Chess.com"]
[Date "2020.04.21"]
[Round "2"]
[White "InfiniteAdaption"]
[Black "Nikolakis2014"]
[Result "0-1"]
[WhiteElo "2475"]
[BlackElo "2687"]
[TimeControl "180+1"]
[EndTime "10:18:56 PDT"]
[Termination "Nikolakis2014 won by resignation"]

1. g3 {[%clk 0:03:00.9]} 1... Nf6 {[%clk 0:02:57]} 2. Bg2 {[%clk 0:02:53.4]}
2... d5 {[%clk 0:02:57]} 3. e3 {[%clk 0:02:51]} 3... e6 {[%clk 0:02:57.1]} 4.
Ne2 {[%clk 0:02:51]} 4... c5 {[%clk 0:02:57.3]} 5. O-O {[%clk 0:02:51.9]} 5...
Nc6 {[%clk 0:02:57.4]} 6. b3 {[%clk 0:02:52.5]} 6... Be7 {[%clk 0:02:57.4]} 7.
Bb2 {[%clk 0:02:53.2]} 7... O-O {[%clk 0:02:57.5]} 8. d4 {[%clk 0:02:54.1]} 8...
b6 {[%clk 0:02:56.8]} 9. Nd2 {[%clk 0:02:52.7]} 9... Bb7 {[%clk 0:02:56.9]} 10.
Re1 {[%clk 0:02:38.8]} 10... Rc8 {[%clk 0:02:56]} 11. c3 {[%clk 0:02:33.6]}
11... Re8 {[%clk 0:02:52.8]} 12. Rc1 {[%clk 0:02:30.8]} 12... e5 {[%clk
0:02:51.8]} 13. h3 {[%clk 0:02:25.9]} 13... cxd4 {[%clk 0:02:45.4]} 14. exd4
{[%clk 0:02:21]} 14... e4 {[%clk 0:02:45]} 15. Nf1 {[%clk 0:02:16.6]} 15... Bd6
{[%clk 0:02:39.2]} 16. Ne3 {[%clk 0:02:16.1]} 16... Qd7 {[%clk 0:02:36.1]} 17.
a3 {[%clk 0:02:12.7]} 17... h5 {[%clk 0:02:35]} 18. c4 {[%clk 0:02:09.8]} 18...
h4 {[%clk 0:02:28.2]} 19. g4 {[%clk 0:01:37.5]} 19... Ne7 {[%clk 0:02:24.2]} 20.
Nc3 {[%clk 0:01:23]} 20... Bf4 {[%clk 0:02:11.6]} 21. Rc2 {[%clk 0:01:18.3]}
21... Ng6 {[%clk 0:02:07.7]} 22. Ncxd5 {[%clk 0:01:12.8]} 22... Nxd5 {[%clk
0:01:59.6]} 23. cxd5 {[%clk 0:01:03.2]} 23... Bxe3 {[%clk 0:01:42.2]} 24. fxe3
{[%clk 0:01:03.5]} 24... Bxd5 {[%clk 0:01:41.3]} 25. Rf2 {[%clk 0:00:29.5]}
25... Rc6 {[%clk 0:01:23.3]} 26. Ref1 {[%clk 0:00:29.3]} 26... Rec8 {[%clk
0:01:18.3]} 27. g5 {[%clk 0:00:28.4]} 27... Qe6 {[%clk 0:01:07.8]} 28. b4 {[%clk
0:00:27.9]} 28... Qe7 {[%clk 0:00:59.2]} 29. Qh5 {[%clk 0:00:26.9]} 29... Rc2
{[%clk 0:00:54.7]} 30. Qg4 {[%clk 0:00:21.9]} 30... R8c6 {[%clk 0:00:48.5]} 31.
b5 {[%clk 0:00:19.3]} 31... Rxf2 {[%clk 0:00:46.1]} 32. Rxf2 {[%clk 0:00:20.2]}
32... Rc7 {[%clk 0:00:42.4]} 33. a4 {[%clk 0:00:20.4]} 33... Qb4 {[%clk
0:00:28.7]} 34. Bxe4 {[%clk 0:00:18.3]} 34... Qe1+ {[%clk 0:00:25.4]} 35. Kg2
{[%clk 0:00:15]} 35... Be6 {[%clk 0:00:19.1]} 36. Qf3 {[%clk 0:00:14.4]} 36...
Re7 {[%clk 0:00:14.4]} 37. d5 {[%clk 0:00:14.3]} 37... Bd7 {[%clk 0:00:14.3]}
38. Bd4 {[%clk 0:00:13]} 38... Rxe4 {[%clk 0:00:12.3]} 39. Qxe4 {[%clk
0:00:11.1]} 39... Bxh3+ {[%clk 0:00:12.9]} 40. Kxh3 {[%clk 0:00:03.6]} 40...
Qxf2 {[%clk 0:00:13.4]} 41. Qe8+ {[%clk 0:00:03.8]} 41... Kh7 {[%clk 0:00:13]}
42. Qb8 {[%clk 0:00:01.8]} 42... Qf3+ {[%clk 0:00:12.2]} 43. Kh2 {[%clk
0:00:02]} 43... Qf2+ {[%clk 0:00:12.2]} 44. Kh1 {[%clk 0:00:02.4]} 44... Ne7
{[%clk 0:00:11]} 45. Qh2 {[%clk 0:00:02.1]} 45... Qf1+ {[%clk 0:00:10.1]} 46.
Qg1 {[%clk 0:00:02.7]} 46... Qh3+ {[%clk 0:00:10.1]} 47. Qh2 {[%clk 0:00:02.6]}
47... Qf3+ {[%clk 0:00:09.6]} 48. Qg2 {[%clk 0:00:03.2]} 48... Qd1+ {[%clk
0:00:09.5]} 49. Kh2 {[%clk 0:00:03.2]} 49... Nf5 {[%clk 0:00:09.7]} 50. d6
{[%clk 0:00:03.2]} 50... Nxd6 {[%clk 0:00:09.7]} 51. g6+ {[%clk 0:00:02]} 51...
fxg6 {[%clk 0:00:09]} 52. Be5 {[%clk 0:00:02.9]} 52... Nf5 {[%clk 0:00:08.9]}
53. Bf4 {[%clk 0:00:03.8]} 53... Qh5 {[%clk 0:00:08.6]} 54. Qf2 {[%clk
0:00:04.2]} 54... g5 {[%clk 0:00:08.3]} 55. Be5 {[%clk 0:00:04.1]} 55... Qg4
{[%clk 0:00:08.3]} 56. Bc3 {[%clk 0:00:03.2]} 56... Nh6 {[%clk 0:00:08]} 57. Qf8
{[%clk 0:00:02.1]} 57... Qg3+ {[%clk 0:00:06.9]} 58. Kh1 {[%clk 0:00:02.6]}
58... Qh3+ {[%clk 0:00:06.8]} 59. Kg1 {[%clk 0:00:03]} 59... Nf5 {[%clk
0:00:06.7]} 60. e4 {[%clk 0:00:02.6]} 60... Qe3+ {[%clk 0:00:06.6]} 61. Kf1
{[%clk 0:00:03]} 61... Qf3+ {[%clk 0:00:06.8]} 62. Ke1 {[%clk 0:00:03]} 62...
Qxc3+ {[%clk 0:00:06.9]} 63. Kd1 {[%clk 0:00:03.3]} 63... Qd3+ {[%clk
0:00:07.4]} 64. Kc1 {[%clk 0:00:03.5]} 64... Qxe4 {[%clk 0:00:08]} 0-1